[Event "Early-Titled-Tuesday-Blitz-February-06-2024"]
[Site "Chess.com"]
[Date "2024.02.06"]
[Round "3"]
[White "Let_it_be_1"]
[Black "Matols"]
[Result "1-0"]
[WhiteElo "2585"]
[BlackElo "2398"]
[TimeControl "180+1"]
[EndTime "8:26:23 PST"]
[Termination "Let_it_be_1 won by resignation"]

1. e4 {[%clk 0:03:00.9]} 1... c6 {[%clk 0:03:00]} 2. d4 {[%clk 0:03:00.6]} 2...
d5 {[%clk 0:03:00.2]} 3. Nd2 {[%clk 0:03:01.2]} 3... dxe4 {[%clk 0:03:00.1]} 4.
Nxe4 {[%clk 0:03:02.1]} 4... Nf6 {[%clk 0:03:00.2]} 5. Nxf6+ {[%clk 0:03:02.4]}
5... exf6 {[%clk 0:03:01.1]} 6. c3 {[%clk 0:03:02.8]} 6... Bd6 {[%clk
0:03:01.5]} 7. Bd3 {[%clk 0:03:03]} 7... O-O {[%clk 0:03:02.1]} 8. Ne2 {[%clk
0:03:03.3]} 8... Re8 {[%clk 0:03:01.9]} 9. Qc2 {[%clk 0:03:03.6]} 9... h5 {[%clk
0:03:01.2]} 10. Be3 {[%clk 0:03:03.7]} 10... Be6 {[%clk 0:02:57.4]} 11. O-O-O
{[%clk 0:03:03.1]} 11... Nd7 {[%clk 0:02:53.2]} 12. c4 {[%clk 0:03:03]} 12...
Nf8 {[%clk 0:02:52.6]} 13. Nc3 {[%clk 0:03:02.1]} 13... Bb4 {[%clk 0:02:36]} 14.
Ne4 {[%clk 0:03:01.5]} 14... Be7 {[%clk 0:02:24.2]} 15. Kb1 {[%clk 0:02:55.5]}
15... b5 {[%clk 0:02:11.8]} 16. cxb5 {[%clk 0:02:39.7]} 16... cxb5 {[%clk
0:02:08.4]} 17. Nc5 {[%clk 0:02:39.7]} 17... Qd5 {[%clk 0:01:26.7]} 18. Nxe6
{[%clk 0:02:32.1]} 18... Nxe6 {[%clk 0:01:27.6]} 19. Be4 {[%clk 0:02:31.8]}
19... Qd6 {[%clk 0:01:16.3]} 20. Bxa8 {[%clk 0:02:30.9]} 20... Rxa8 {[%clk
0:01:17.2]} 21. d5 {[%clk 0:02:28.8]} 21... Nf4 {[%clk 0:01:09]} 22. Qc6 {[%clk
0:02:04.2]} 22... Qxc6 {[%clk 0:00:59.9]} 23. dxc6 {[%clk 0:02:03.6]} 23... Nxg2
{[%clk 0:00:59.8]} 24. Rd7 {[%clk 0:01:47.5]} 24... Nxe3 {[%clk 0:00:54.9]} 25.
Rxe7 {[%clk 0:01:40.3]} 25... Nd5 {[%clk 0:00:52.9]} 26. Rb7 {[%clk 0:01:33.1]}
26... Rc8 {[%clk 0:00:50.5]} 27. Rc1 {[%clk 0:01:29.3]} 27... a6 {[%clk
0:00:39.9]} 28. c7 {[%clk 0:01:26.5]} 28... Kh7 {[%clk 0:00:39.7]} 29. Rc5
{[%clk 0:01:23.9]} 29... Ne7 {[%clk 0:00:27.9]} 30. Rb8 {[%clk 0:01:18.3]} 30...
Kg6 {[%clk 0:00:26.4]} 31. Rxc8 {[%clk 0:01:17.6]} 31... Nxc8 {[%clk 0:00:27.3]}
32. Rd5 {[%clk 0:01:16.9]} 1-0

[Event "Early-Titled-Tuesday-Blitz-February-06-2024"]
[Site "Chess.com"]
[Date "2024.02.06"]
[Round "3"]
[White "banhgiahuy2606"]
[Black "SARGISMV"]
[Result "1-0"]
[WhiteElo "2676"]
[BlackElo "2458"]
[TimeControl "180+1"]
[EndTime "8:26:32 PST"]
[Termination "banhgiahuy2606 won by resignation"]

1. d4 {[%clk 0:03:00.9]} 1... d5 {[%clk 0:02:56.5]} 2. Nf3 {[%clk 0:03:00.3]}
2... Nf6 {[%clk 0:02:56.1]} 3. Bf4 {[%clk 0:02:59.6]} 3... c6 {[%clk 0:02:49.2]}
4. e3 {[%clk 0:02:57.3]} 4... Bf5 {[%clk 0:02:44.5]} 5. Bd3 {[%clk 0:02:55.4]}
5... Bxd3 {[%clk 0:02:43]} 6. cxd3 {[%clk 0:02:56.3]} 6... Qb6 {[%clk
0:02:41.2]} 7. Qc2 {[%clk 0:02:53.9]} 7... Nbd7 {[%clk 0:02:19.4]} 8. O-O {[%clk
0:02:52.5]} 8... Nh5 {[%clk 0:02:18.8]} 9. Bg5 {[%clk 0:02:51.6]} 9... h6 {[%clk
0:02:18.2]} 10. Bh4 {[%clk 0:02:51.8]} 10... g5 {[%clk 0:02:18.8]} 11. Bg3
{[%clk 0:02:52.1]} 11... Nxg3 {[%clk 0:02:17.4]} 12. hxg3 {[%clk 0:02:53]} 12...
Bg7 {[%clk 0:02:17.2]} 13. Nc3 {[%clk 0:02:52.7]} 13... e6 {[%clk 0:02:00.8]}
14. Rac1 {[%clk 0:02:47.1]} 14... a5 {[%clk 0:01:59.1]} 15. Na4 {[%clk
0:02:46.3]} 15... Qb4 {[%clk 0:01:56.2]} 16. a3 {[%clk 0:02:46.2]} 16... Qb5
{[%clk 0:01:54]} 17. Nc5 {[%clk 0:02:46.2]} 17... Nxc5 {[%clk 0:01:53.4]} 18.
Qxc5 {[%clk 0:02:42.1]} 18... Qxc5 {[%clk 0:01:53.1]} 19. Rxc5 {[%clk
0:02:41.4]} 19... Ra6 {[%clk 0:01:47.1]} 20. Rfc1 {[%clk 0:02:40.5]} 20... Kd7
{[%clk 0:01:42.7]} 21. Kf1 {[%clk 0:02:39.6]} 21... Rha8 {[%clk 0:01:39.6]} 22.
g4 {[%clk 0:02:39.9]} 22... Rb6 {[%clk 0:01:38.6]} 23. R5c2 {[%clk 0:02:39.8]}
23... Rb3 {[%clk 0:01:34.5]} 24. Ke2 {[%clk 0:02:39.2]} 24... Ra6 {[%clk
0:01:34.9]} 25. Nd2 {[%clk 0:02:36.5]} 25... Rb5 {[%clk 0:01:33.1]} 26. b3
{[%clk 0:02:25.5]} 26... Bf8 {[%clk 0:01:28.4]} 27. Ra2 {[%clk 0:02:24.9]} 27...
f6 {[%clk 0:01:22.4]} 28. Rc3 {[%clk 0:02:16.9]} 28... Bd6 {[%clk 0:01:01.8]}
29. e4 {[%clk 0:02:12.7]} 29... e5 {[%clk 0:01:00.8]} 30. Nf3 {[%clk 0:02:09.3]}
30... Rab6 {[%clk 0:00:58]} 31. dxe5 {[%clk 0:02:05]} 31... fxe5 {[%clk
0:00:56.5]} 32. Nd2 {[%clk 0:02:00.6]} 32... Ke6 {[%clk 0:00:44]} 33. g3 {[%clk
0:02:00.2]} 33... Ra6 {[%clk 0:00:43.1]} 34. Rc1 {[%clk 0:01:59.4]} 34... Ra8
{[%clk 0:00:40.1]} 35. Rh1 {[%clk 0:01:59.2]} 35... Bf8 {[%clk 0:00:40.1]} 36.
a4 {[%clk 0:01:56.8]} 36... Rb4 {[%clk 0:00:40]} 37. Rc2 {[%clk 0:01:56.8]}
37... Bg7 {[%clk 0:00:36.5]} 38. exd5+ {[%clk 0:01:52.2]} 38... Kxd5 {[%clk
0:00:32.6]} 39. Rc4 {[%clk 0:01:40.7]} 39... Rxc4 {[%clk 0:00:29.9]} 40. Nxc4
{[%clk 0:01:36.9]} 40... b5 {[%clk 0:00:28.5]} 41. Nb6+ {[%clk 0:01:37]} 1-0

[Event "Early-Titled-Tuesday-Blitz-February-06-2024"]
[Site "Chess.com"]
[Date "2024.02.06"]
[Round "3"]
[White "alvarorodriguezavila"]
[Black "Snegokhod"]
[Result "0-1"]
[WhiteElo "2379"]
[BlackElo "2571"]
[TimeControl "180+1"]
[EndTime "8:26:33 PST"]
[Termination "Snegokhod won by checkmate"]

1. e4 {[%clk 0:03:00.9]} 1... e6 {[%clk 0:02:55.1]} 2. d4 {[%clk 0:03:00.6]}
2... d6 {[%clk 0:02:54.5]} 3. c4 {[%clk 0:02:58.4]} 3... b6 {[%clk 0:02:53.6]}
4. Nc3 {[%clk 0:02:58.7]} 4... Bb7 {[%clk 0:02:53.8]} 5. Bd3 {[%clk 0:02:58.8]}
5... g6 {[%clk 0:02:52.8]} 6. Be3 {[%clk 0:02:59]} 6... Bg7 {[%clk 0:02:52.6]}
7. Qd2 {[%clk 0:02:55.8]} 7... h6 {[%clk 0:02:52.2]} 8. Nge2 {[%clk 0:02:56]}
8... Ne7 {[%clk 0:02:51.1]} 9. h4 {[%clk 0:02:56.5]} 9... h5 {[%clk 0:02:49.3]}
10. f3 {[%clk 0:02:50.4]} 10... Nd7 {[%clk 0:02:48.9]} 11. O-O-O {[%clk
0:02:47.5]} 11... a6 {[%clk 0:02:48]} 12. Kb1 {[%clk 0:02:47.7]} 12... b5 {[%clk
0:02:46.9]} 13. cxb5 {[%clk 0:02:41.8]} 13... axb5 {[%clk 0:02:46.4]} 14. Bxb5
{[%clk 0:02:42.5]} 14... Kf8 {[%clk 0:02:39]} 15. Bg5 {[%clk 0:02:39.9]} 15...
Ba6 {[%clk 0:02:34.5]} 16. Rc1 {[%clk 0:02:12.9]} 16... Nb6 {[%clk 0:02:33]} 17.
Qd3 {[%clk 0:02:09.3]} 17... Bb7 {[%clk 0:02:17.1]} 18. Qd2 {[%clk 0:01:29]}
18... Qb8 {[%clk 0:02:13.7]} 19. Nf4 {[%clk 0:01:19]} 19... Ba6 {[%clk
0:02:06.1]} 20. Nxe6+ {[%clk 0:01:08.7]} 20... fxe6 {[%clk 0:02:04.9]} 21. Qf4+
{[%clk 0:01:09.3]} 21... Nf5 {[%clk 0:02:01.5]} 22. exf5 {[%clk 0:00:59.8]}
22... exf5 {[%clk 0:01:59.2]} 23. Qd2 {[%clk 0:00:15.9]} 23... Bb7 {[%clk
0:01:47.5]} 24. Rhe1 {[%clk 0:00:14.1]} 24... Nd5 {[%clk 0:01:45.6]} 25. Nxd5
{[%clk 0:00:11.5]} 25... Bxd5 {[%clk 0:01:45.6]} 26. Be7+ {[%clk 0:00:12.1]}
26... Kg8 {[%clk 0:01:44.2]} 27. a4 {[%clk 0:00:12.6]} 27... Kh7 {[%clk
0:01:42.3]} 28. Bc6 {[%clk 0:00:04.5]} 28... Bxc6 {[%clk 0:01:40.6]} 29. Rxc6
{[%clk 0:00:05.4]} 29... Rxa4 {[%clk 0:01:40.1]} 30. Rd1 {[%clk 0:00:01.9]}
30... Rxd4 {[%clk 0:01:39.6]} 31. Qxd4 {[%clk 0:00:02.5]} 31... Bxd4 {[%clk
0:01:38.7]} 32. Rxd4 {[%clk 0:00:02.6]} 32... Re8 {[%clk 0:01:35.1]} 33. Bg5
{[%clk 0:00:01.8]} 33... Re2 {[%clk 0:01:33.9]} 34. Rdc4 {[%clk 0:00:01.6]}
34... Qxb2# {[%clk 0:01:32.7]} 0-1

[Event "Early-Titled-Tuesday-Blitz-February-06-2024"]
[Site "Chess.com"]
[Date "2024.02.06"]
[Round "3"]
[White "Cambek64"]
[Black "Irina_Mikhaylova"]
[Result "1-0"]
[WhiteElo "2513"]
[BlackElo "2341"]
[TimeControl "180+1"]
[EndTime "8:26:36 PST"]
[Termination "Cambek64 won by resignation"]

1. e4 {[%clk 0:02:57.8]} 1... c5 {[%clk 0:03:00.1]} 2. Nc3 {[%clk 0:02:56]} 2...
Nc6 {[%clk 0:03:00.2]} 3. d3 {[%clk 0:02:54.3]} 3... d6 {[%clk 0:02:58.5]} 4.
Be3 {[%clk 0:02:54]} 4... g6 {[%clk 0:02:57.7]} 5. d4 {[%clk 0:02:52.2]} 5...
cxd4 {[%clk 0:02:56.9]} 6. Bxd4 {[%clk 0:02:52.8]} 6... Nf6 {[%clk 0:02:45.2]}
7. Bxf6 {[%clk 0:02:51.4]} 7... exf6 {[%clk 0:02:45.4]} 8. Bc4 {[%clk
0:02:45.7]} 8... Be6 {[%clk 0:02:44]} 9. Bb3 {[%clk 0:02:42.6]} 9... a6 {[%clk
0:02:39.6]} 10. Nge2 {[%clk 0:02:41]} 10... Bg7 {[%clk 0:02:23]} 11. O-O {[%clk
0:02:40]} 11... O-O {[%clk 0:02:22.6]} 12. Nf4 {[%clk 0:02:40.3]} 12... Bxb3
{[%clk 0:02:21.3]} 13. cxb3 {[%clk 0:02:37.8]} 13... Re8 {[%clk 0:02:18.6]} 14.
Nfd5 {[%clk 0:02:29.3]} 14... b5 {[%clk 0:02:07.8]} 15. Re1 {[%clk 0:02:27.8]}
15... b4 {[%clk 0:02:04.3]} 16. Na4 {[%clk 0:02:25.8]} 16... Rb8 {[%clk
0:01:37.9]} 17. Qd2 {[%clk 0:02:21.7]} 17... a5 {[%clk 0:01:37.3]} 18. Rad1
{[%clk 0:02:14.4]} 18... Rb7 {[%clk 0:01:25.6]} 19. f4 {[%clk 0:02:10.1]} 19...
Ne7 {[%clk 0:01:20.7]} 20. Ne3 {[%clk 0:01:37.9]} 20... Rd7 {[%clk 0:01:06.3]}
21. g3 {[%clk 0:01:34]} 21... Qa8 {[%clk 0:00:51.6]} 22. Nb6 {[%clk 0:01:22.7]}
22... Qc6 {[%clk 0:00:50.4]} 23. Nxd7 {[%clk 0:01:22.4]} 23... Qxd7 {[%clk
0:00:50.8]} 24. Qxd6 {[%clk 0:01:22]} 24... Qa7 {[%clk 0:00:47.7]} 25. Qd7
{[%clk 0:01:21]} 25... Ra8 {[%clk 0:00:47.5]} 26. Qxa7 {[%clk 0:01:18.2]} 26...
Rxa7 {[%clk 0:00:48.4]} 27. Nd5 {[%clk 0:01:12.7]} 1-0

[Event "Early-Titled-Tuesday-Blitz-February-06-2024"]
[Site "Chess.com"]
[Date "2024.02.06"]
[Round "3"]
[White "kingofthenil"]
[Black "scarabee43"]
[Result "0-1"]
[WhiteElo "2664"]
[BlackElo "2875"]
[TimeControl "180+1"]
[EndTime "8:26:39 PST"]
[Termination "scarabee43 won on time"]

1. d4 {[%clk 0:03:00.9]} 1... Nf6 {[%clk 0:02:59.4]} 2. c4 {[%clk 0:02:59.8]}
2... e6 {[%clk 0:02:59.8]} 3. Nf3 {[%clk 0:02:59.8]} 3... d5 {[%clk 0:02:59.7]}
4. cxd5 {[%clk 0:02:47.5]} 4... exd5 {[%clk 0:02:59.4]} 5. Nc3 {[%clk
0:02:48.4]} 5... c6 {[%clk 0:02:58.5]} 6. Bg5 {[%clk 0:02:47.9]} 6... h6 {[%clk
0:02:54.9]} 7. Bh4 {[%clk 0:02:47.6]} 7... Bf5 {[%clk 0:02:54.7]} 8. e3 {[%clk
0:02:44.7]} 8... Nbd7 {[%clk 0:02:53.6]} 9. Bd3 {[%clk 0:02:42.7]} 9... Bxd3
{[%clk 0:02:53.6]} 10. Qxd3 {[%clk 0:02:43.6]} 10... Bd6 {[%clk 0:02:53.1]} 11.
O-O {[%clk 0:02:25.8]} 11... O-O {[%clk 0:02:52]} 12. e4 {[%clk 0:02:22.5]}
12... dxe4 {[%clk 0:02:47.8]} 13. Nxe4 {[%clk 0:02:23]} 13... Be7 {[%clk
0:02:48.3]} 14. Bxf6 {[%clk 0:02:21.9]} 14... Nxf6 {[%clk 0:02:47.7]} 15. Ng3
{[%clk 0:02:16.5]} 15... Re8 {[%clk 0:02:22.6]} 16. Rfe1 {[%clk 0:02:09.7]}
16... Bf8 {[%clk 0:02:21.8]} 17. Ne5 {[%clk 0:02:00.7]} 17... Qd5 {[%clk
0:02:17.4]} 18. Nf5 {[%clk 0:02:01.1]} 18... Nd7 {[%clk 0:01:29.9]} 19. Qg3
{[%clk 0:01:33.8]} 19... Nxe5 {[%clk 0:01:29.6]} 20. dxe5 {[%clk 0:01:28.1]}
20... g6 {[%clk 0:01:25.1]} 21. h4 {[%clk 0:01:09.9]} 21... h5 {[%clk
0:01:20.3]} 22. b3 {[%clk 0:01:04]} 22... Rad8 {[%clk 0:01:19.7]} 23. Rad1
{[%clk 0:00:34]} 23... Qa5 {[%clk 0:01:09]} 24. f4 {[%clk 0:00:07.8]} 24... Qxa2
{[%clk 0:01:02.2]} 0-1

[Event "Early-Titled-Tuesday-Blitz-February-06-2024"]
[Site "Chess.com"]
[Date "2024.02.06"]
[Round "3"]
[White "Zurability"]
[Black "Yerlan-Ra"]
[Result "1-0"]
[WhiteElo "2751"]
[BlackElo "2479"]
[TimeControl "180+1"]
[EndTime "8:26:40 PST"]
[Termination "Zurability won by checkmate"]

1. e4 {[%clk 0:03:00.9]} 1... e5 {[%clk 0:03:00]} 2. Nf3 {[%clk 0:02:59.1]} 2...
d6 {[%clk 0:03:00]} 3. Bc4 {[%clk 0:02:55.7]} 3... Be7 {[%clk 0:03:00]} 4. d4
{[%clk 0:02:52.8]} 4... exd4 {[%clk 0:03:00.9]} 5. Nxd4 {[%clk 0:02:52.6]} 5...
Nf6 {[%clk 0:03:01.5]} 6. Nc3 {[%clk 0:02:52.6]} 6... O-O {[%clk 0:03:02]} 7.
O-O {[%clk 0:02:53.1]} 7... Re8 {[%clk 0:03:02.6]} 8. Re1 {[%clk 0:02:43.5]}
8... Nbd7 {[%clk 0:03:00.8]} 9. f4 {[%clk 0:02:32.5]} 9... Bf8 {[%clk
0:02:59.9]} 10. Nf3 {[%clk 0:02:30.5]} 10... c6 {[%clk 0:02:58.6]} 11. h3 {[%clk
0:01:55.2]} 11... a5 {[%clk 0:02:53.5]} 12. a4 {[%clk 0:01:54.4]} 12... Nc5
{[%clk 0:02:53]} 13. e5 {[%clk 0:01:40.6]} 13... dxe5 {[%clk 0:02:50.8]} 14.
Qxd8 {[%clk 0:01:30.2]} 14... Rxd8 {[%clk 0:02:51.7]} 15. fxe5 {[%clk
0:01:20.8]} 15... Nd5 {[%clk 0:02:40.6]} 16. Bxd5 {[%clk 0:01:13.7]} 16... cxd5
{[%clk 0:02:41.5]} 17. Nd4 {[%clk 0:01:10.5]} 17... Be6 {[%clk 0:02:16.7]} 18.
Be3 {[%clk 0:01:04.3]} 18... Rac8 {[%clk 0:02:16.3]} 19. Ncb5 {[%clk 0:00:55.4]}
19... Ne4 {[%clk 0:02:01.2]} 20. c3 {[%clk 0:00:51.3]} 20... Bc5 {[%clk
0:01:58.3]} 21. Nb3 {[%clk 0:00:41.9]} 21... Bxe3+ {[%clk 0:01:48]} 22. Rxe3
{[%clk 0:00:42.8]} 22... b6 {[%clk 0:01:47.6]} 23. Rae1 {[%clk 0:00:38.9]} 23...
Rc4 {[%clk 0:01:47.3]} 24. Ra1 {[%clk 0:00:32.8]} 24... Nc5 {[%clk 0:01:46]} 25.
Nxc5 {[%clk 0:00:27.1]} 25... bxc5 {[%clk 0:01:46.9]} 26. b3 {[%clk 0:00:22.8]}
26... Re4 {[%clk 0:01:37.7]} 27. Rae1 {[%clk 0:00:17]} 27... Rxe3 {[%clk
0:01:35]} 28. Rxe3 {[%clk 0:00:17.9]} 28... d4 {[%clk 0:01:35.1]} 29. cxd4
{[%clk 0:00:18.5]} 29... cxd4 {[%clk 0:01:36]} 30. Rd3 {[%clk 0:00:19.1]} 30...
Kf8 {[%clk 0:01:28.3]} 31. Rxd4 {[%clk 0:00:17.5]} 31... Rc8 {[%clk 0:01:28.7]}
32. Rd3 {[%clk 0:00:17]} 32... Rc2 {[%clk 0:01:23.1]} 33. Nd4 {[%clk 0:00:16.5]}
33... Rc1+ {[%clk 0:01:21.1]} 34. Kf2 {[%clk 0:00:16.9]} 34... Bf5 {[%clk
0:01:18.2]} 35. Nxf5 {[%clk 0:00:16.7]} 35... g6 {[%clk 0:01:15.4]} 36. Rd8#
{[%clk 0:00:16.6]} 1-0

[Event "Early-Titled-Tuesday-Blitz-February-06-2024"]
[Site "Chess.com"]
[Date "2024.02.06"]
[Round "3"]
[White "Chernyavsky_A"]
[Black "yobdc"]
[Result "0-1"]
[WhiteElo "2396"]
[BlackElo "2587"]
[TimeControl "180+1"]
[EndTime "8:26:41 PST"]
[Termination "yobdc won on time"]

1. c4 {[%clk 0:03:00.9]} 1... Nf6 {[%clk 0:02:58.3]} 2. Nc3 {[%clk 0:03:00.8]}
2... g6 {[%clk 0:02:58.8]} 3. d4 {[%clk 0:02:58.3]} 3... Bg7 {[%clk 0:02:58.7]}
4. g3 {[%clk 0:02:58.6]} 4... O-O {[%clk 0:02:57.1]} 5. Bg2 {[%clk 0:02:59.2]}
5... c5 {[%clk 0:02:57.4]} 6. Nf3 {[%clk 0:02:48]} 6... cxd4 {[%clk 0:02:57.6]}
7. Nxd4 {[%clk 0:02:48.6]} 7... Qc7 {[%clk 0:02:57.9]} 8. b3 {[%clk 0:02:36.2]}
8... d5 {[%clk 0:02:57.9]} 9. Ncb5 {[%clk 0:01:38]} 9... Qa5+ {[%clk 0:02:49.5]}
10. Bd2 {[%clk 0:01:37.8]} 10... Qd8 {[%clk 0:02:49.4]} 11. cxd5 {[%clk
0:01:02.7]} 11... Nxd5 {[%clk 0:02:44.9]} 12. e4 {[%clk 0:00:57.3]} 12... Nf6
{[%clk 0:02:19.3]} 13. Rc1 {[%clk 0:00:53.2]} 13... Nc6 {[%clk 0:02:17.5]} 14.
Nxc6 {[%clk 0:00:25.5]} 14... bxc6 {[%clk 0:02:17.8]} 15. Nc3 {[%clk 0:00:24.2]}
15... Ba6 {[%clk 0:02:14]} 16. Na4 {[%clk 0:00:20.6]} 16... Nd7 {[%clk 0:02:07]}
17. Be3 {[%clk 0:00:17.7]} 17... Qa5+ {[%clk 0:01:41.6]} 18. Qd2 {[%clk
0:00:15.9]} 18... Qc7 {[%clk 0:01:41.7]} 19. f4 {[%clk 0:00:13.7]} 19... Rfd8
{[%clk 0:01:39.4]} 20. Qc2 {[%clk 0:00:13.2]} 20... Qa5+ {[%clk 0:01:31.7]} 21.
Bd2 {[%clk 0:00:11.2]} 21... Qh5 {[%clk 0:01:31.6]} 22. Be3 {[%clk 0:00:07]}
22... Bh6 {[%clk 0:01:11.9]} 23. Kf2 {[%clk 0:00:05.3]} 23... e5 {[%clk
0:01:05.3]} 24. Qxc6 {[%clk 0:00:04.3]} 24... Qe2+ {[%clk 0:01:04.8]} 0-1

[Event "Early-Titled-Tuesday-Blitz-February-06-2024"]
[Site "Chess.com"]
[Date "2024.02.06"]
[Round "3"]
[White "VitaliyChayka"]
[Black "AnaKuchava"]
[Result "1-0"]
[WhiteElo "2400"]
[BlackElo "2184"]
[TimeControl "180+1"]
[EndTime "8:26:45 PST"]
[Termination "VitaliyChayka won on time"]

1. d4 {[%clk 0:02:57.8]} 1... d5 {[%clk 0:02:59.7]} 2. Bf4 {[%clk 0:02:57.9]}
2... c5 {[%clk 0:02:58.9]} 3. e3 {[%clk 0:02:58.6]} 3... cxd4 {[%clk 0:02:58.4]}
4. exd4 {[%clk 0:02:58.7]} 4... Nc6 {[%clk 0:02:59.3]} 5. c3 {[%clk 0:02:58.6]}
5... Bf5 {[%clk 0:02:58.1]} 6. Qb3 {[%clk 0:02:58.2]} 6... Qd7 {[%clk
0:02:54.6]} 7. Nf3 {[%clk 0:02:57.5]} 7... a6 {[%clk 0:02:53.2]} 8. Nbd2 {[%clk
0:02:56.8]} 8... e6 {[%clk 0:02:51.9]} 9. Be2 {[%clk 0:02:55.7]} 9... f6 {[%clk
0:02:41.8]} 10. Nh4 {[%clk 0:02:54.6]} 10... g5 {[%clk 0:02:04.7]} 11. Bh5+
{[%clk 0:02:49.8]} 11... Kd8 {[%clk 0:01:51.4]} 12. Nxf5 {[%clk 0:02:48.6]}
12... exf5 {[%clk 0:01:48]} 13. Be3 {[%clk 0:02:35]} 13... f4 {[%clk 0:01:47.4]}
14. O-O {[%clk 0:02:30.2]} 14... fxe3 {[%clk 0:01:45.9]} 15. fxe3 {[%clk
0:02:31.1]} 15... Be7 {[%clk 0:01:41.8]} 16. Bf3 {[%clk 0:02:26.6]} 16... Na5
{[%clk 0:01:34.5]} 17. Qb6+ {[%clk 0:02:17.2]} 17... Qc7 {[%clk 0:01:34.4]} 18.
Qe6 {[%clk 0:02:17.9]} 18... Qd6 {[%clk 0:01:29.4]} 19. Qf7 {[%clk 0:02:04.3]}
19... Kc7 {[%clk 0:01:09.8]} 20. Qg7 {[%clk 0:02:02.6]} 20... Qe6 {[%clk
0:01:09]} 21. Qxh8 {[%clk 0:01:58.7]} 21... Qf7 {[%clk 0:01:07.1]} 22. Bg4
{[%clk 0:01:30.4]} 22... Rf8 {[%clk 0:00:54.7]} 23. Bf5 {[%clk 0:01:28.6]} 23...
Nh6 {[%clk 0:00:20.1]} 24. Qxh7 {[%clk 0:01:28.8]} 24... Nxf5 {[%clk 0:00:13.2]}
25. Qxf5 {[%clk 0:01:28.4]} 25... Nc6 {[%clk 0:00:11.4]} 26. Nf3 {[%clk
0:01:27.1]} 26... Qg8 {[%clk 0:00:06]} 27. e4 {[%clk 0:01:23.4]} 27... dxe4
{[%clk 0:00:05.1]} 28. Qxe4 {[%clk 0:01:24.3]} 28... Bd6 {[%clk 0:00:03.8]} 29.
h3 {[%clk 0:01:21.3]} 29... Re8 {[%clk 0:00:01.7]} 30. Qf5 {[%clk 0:01:19.6]}
30... Qg7 {[%clk 0:00:01.2]} 31. Rae1 {[%clk 0:01:15.9]} 31... Bg3 {[%clk
0:00:01.2]} 32. Rxe8 {[%clk 0:01:15]} 1-0

[Event "Early-Titled-Tuesday-Blitz-February-06-2024"]
[Site "Chess.com"]
[Date "2024.02.06"]
[Round "3"]
[White "marsofsilva"]
[Black "Dinamo3"]
[Result "0-1"]
[WhiteElo "2011"]
[BlackElo "2529"]
[TimeControl "180+1"]
[EndTime "8:26:46 PST"]
[Termination "Dinamo3 won by checkmate"]

1. d4 {[%clk 0:03:00.9]} 1... Nf6 {[%clk 0:02:58]} 2. c4 {[%clk 0:03:00.4]} 2...
g6 {[%clk 0:02:58]} 3. g3 {[%clk 0:02:59.4]} 3... Bg7 {[%clk 0:02:58.3]} 4. Bg2
{[%clk 0:02:59.8]} 4... O-O {[%clk 0:02:58.6]} 5. Nc3 {[%clk 0:03:00.5]} 5... d6
{[%clk 0:02:59.1]} 6. Nf3 {[%clk 0:03:01.2]} 6... Nc6 {[%clk 0:02:58.6]} 7. O-O
{[%clk 0:03:01]} 7... Bf5 {[%clk 0:02:58.9]} 8. d5 {[%clk 0:02:54.1]} 8... Na5
{[%clk 0:02:58.6]} 9. b3 {[%clk 0:02:50]} 9... c5 {[%clk 0:02:58.7]} 10. Bd2
{[%clk 0:02:49.5]} 10... a6 {[%clk 0:02:57.9]} 11. Re1 {[%clk 0:02:38.8]} 11...
Ne4 {[%clk 0:02:57.1]} 12. Nxe4 {[%clk 0:02:37.4]} 12... Bxe4 {[%clk 0:02:52.2]}
13. Rc1 {[%clk 0:02:34.2]} 13... b5 {[%clk 0:02:51.5]} 14. Bf1 {[%clk
0:02:16.6]} 14... Bb2 {[%clk 0:02:29.8]} 15. Ng5 {[%clk 0:02:10.2]} 15... Bxc1
{[%clk 0:02:22]} 16. Qxc1 {[%clk 0:02:08.8]} 16... Bf5 {[%clk 0:02:20.2]} 17. e4
{[%clk 0:02:07.9]} 17... Bg4 {[%clk 0:02:19.9]} 18. h3 {[%clk 0:01:57.4]} 18...
Bd7 {[%clk 0:02:19.3]} 19. Bc3 {[%clk 0:01:50.5]} 19... f6 {[%clk 0:02:11.5]}
20. e5 {[%clk 0:01:12.7]} 20... dxe5 {[%clk 0:01:59.3]} 21. f4 {[%clk
0:00:59.8]} 21... fxg5 {[%clk 0:01:56.9]} 22. Rxe5 {[%clk 0:00:54.6]} 22... gxf4
{[%clk 0:01:45.8]} 23. gxf4 {[%clk 0:00:54.2]} 23... Nb7 {[%clk 0:01:45.5]} 24.
Qe3 {[%clk 0:00:52]} 24... Nd6 {[%clk 0:01:42.2]} 25. Bd3 {[%clk 0:00:46.6]}
25... Rf7 {[%clk 0:01:35.2]} 26. h4 {[%clk 0:00:39]} 26... Bf5 {[%clk
0:01:33.5]} 27. Be2 {[%clk 0:00:35.7]} 27... bxc4 {[%clk 0:01:31.4]} 28. bxc4
{[%clk 0:00:35.6]} 28... Rb8 {[%clk 0:01:30.1]} 29. h5 {[%clk 0:00:30.9]} 29...
Rb1+ {[%clk 0:01:29.6]} 30. Kf2 {[%clk 0:00:29.7]} 30... Qf8 {[%clk 0:01:23.8]}
31. hxg6 {[%clk 0:00:23.7]} 31... hxg6 {[%clk 0:01:24.7]} 32. Qg3 {[%clk
0:00:15.2]} 32... Ne4+ {[%clk 0:01:18.6]} 33. Rxe4 {[%clk 0:00:15]} 33... Bxe4
{[%clk 0:01:19.1]} 34. Bd3 {[%clk 0:00:06.7]} 34... Rxf4+ {[%clk 0:01:18.8]} 35.
Ke3 {[%clk 0:00:06.3]} 35... Rf3+ {[%clk 0:01:18.9]} 36. Qxf3 {[%clk 0:00:06.1]}
36... Qxf3+ {[%clk 0:01:19.7]} 37. Kd2 {[%clk 0:00:06.1]} 37... Qxd3# {[%clk
0:01:19.3]} 0-1